bitfinex/quotes_BTCUSD_20220205
["timestamp","ask_amount","ask_price","bid_price","bid_amount"]
[1644041040269,0.00031429,41611.0,41610.0,1.19096962]
[1644041040467,0.02,41619.0,41612.0,0.180129]
[1644041040468,0.00083633,41613.0,41612.0,0.180129]
[1644041040671,0.00083633,41613.0,41612.0,1.181029]
[1644041040869,0.00334459,41621.0,41613.0,0.75]
[1644041041169,0.001,41624.0,41621.0,0.4015693]
[1644041041368,0.001,41624.0,41623.0,0.6527]
[1644041041668,0.001,41632.0,41623.0,0.7009]
[1644041041869,0.001,41632.0,41628.0,0.4045183]
[1644041042068,0.001,41632.0,41628.0,0.4527183]
[1644041042270,0.001,41632.0,41628.0,0.6027183]
[1644041042818,0.001,41632.0,41628.0,0.5527183]
[1644041043421,0.001,41632.0,41628.0,0.31826546]
[1644041044418,0.001,41632.0,41628.0,0.57837793]
[1644041044820,0.001,41632.0,41628.0,0.31826546]
[1644041045220,0.00083799,41631.0,41628.0,0.158233]
[1644041045421,0.00083799,41631.0,41628.0,0.0482]
[1644041045825,0.25253807,41629.0,41628.0,0.0482]
[1644041046022,0.25253807,41629.0,41626.0,0.060033]
[1644041047567,0.25253807,41629.0,41627.0,0.060047]
[1644041049266,0.25253807,41629.0,41627.0,0.120089]
[1644041049867,0.02,41629.0,41627.0,0.120089]
[1644041052717,0.02,41629.0,41627.0,0.360089]
[1644041052916,0.02,41629.0,41627.0,0.460089]
[1644041054267,0.02,41629.0,41627.0,0.400047]
[1644041056769,0.02,41629.0,41627.0,0.620119]
[1644041056970,0.02,41629.0,41628.0,0.06003798]
[1644041059631,0.02,41629.0,41627.0,0.570119]
[1644041059831,0.02,41629.0,41628.0,0.05]
[1644041060333,0.02,41629.0,41627.0,0.570119]
[1644041065319,0.02,41629.0,41628.0,0.1]
[1644041065525,0.02,41629.0,41627.0,0.570119]
[1644041065919,0.01988567,41629.0,41627.0,0.570119]
[1644041068321,0.01988567,41629.0,41627.0,0.520119]
[1644041068521,0.01988567,41629.0,41627.0,0.420119]
[1644041068722,0.01988567,41629.0,41627.0,0.570119]
[1644041070368,0.01988567,41629.0,41628.0,0.05]
[1644041071370,0.01988567,41629.0,41628.0,0.1]
[1644041076018,0.01988567,41629.0,41628.0,0.05]
[1644041076869,0.01988567,41629.0,41628.0,0.37381956]
[1644041077266,0.01988567,41629.0,41628.0,0.2]
[1644041078267,0.01988567,41629.0,41628.0,0.1]
[1644041078869,0.01988567,41629.0,41628.0,0.42415468]
[1644041079372,0.01988567,41629.0,41628.0,0.52415468]
[1644041079669,0.01988567,41629.0,41628.0,0.2482]
[1644041080069,0.01988567,41629.0,41628.0,0.1982]
[1644041080317,0.01988567,41629.0,41628.0,0.05]
[1644041087184,0.01979517,41629.0,41628.0,0.05]
[1644041091418,0.01979517,41629.0,41628.0,0.1]
[1644041095320,0.01979517,41629.0,41628.0,0.05]
[1644041095519,0.01979517,41629.0,41628.0,0.1]
[1644041095820,0.01979517,41629.0,41628.0,0.05]
[1644041096018,0.01979517,41629.0,41628.0,0.1]
[1644041096418,0.01979517,41629.0,41628.0,0.05]
[1644041096719,0.01979517,41629.0,41628.0,0.1]
[1644041100069,0.01979517,41629.0,41628.0,0.05]
[1644041100267,0.01979517,41629.0,41628.0,0.1]
[1644041110168,0.01979517,41629.0,41628.0,0.37657715]
[1644041110424,0.01970146,41629.0,41628.0,0.47657715]
[1644041111822,0.01970146,41629.0,41628.0,0.2]
[1644041112220,0.01970146,41629.0,41628.0,0.1]
[1644041113722,0.01970146,41629.0,41628.0,0.37166123]
[1644041113924,0.00334943,41637.0,41630.0,0.25]
[1644041114174,0.00334943,41637.0,41631.0,0.120065]
[1644041114373,0.00334943,41637.0,41631.0,0.220065]
[1644041114682,0.30506109,41639.0,41635.0,0.08052143]
[1644041114973,0.30506109,41639.0,41635.0,0.38590638]
[1644041114974,0.095,41639.0,41635.0,0.38590638]
[1644041115373,0.095,41639.0,41635.0,0.48590638]
[1644041115582,0.095,41639.0,41635.0,0.54593938]
[1644041116573,0.095,41639.0,41636.0,0.810011]
[1644041116773,0.095,41639.0,41638.0,0.05]
[1644041116973,0.095,41639.0,41638.0,0.0982]
[1644041117173,0.095,41639.0,41638.0,0.1482]
[1644041117821,0.095,41639.0,41638.0,0.42532585]
[1644041118225,0.095,41639.0,41638.0,0.52532585]
[1644041118434,0.095,41639.0,41638.0,0.2482]
[1644041119023,0.09,41639.0,41638.0,0.2482]
[1644041119422,0.09,41639.0,41638.0,0.1482]
[1644041119623,0.09,41639.0,41638.0,0.0982]
[1644041119823,0.09,41639.0,41637.0,0.120026]
[1644041120828,0.09,41639.0,41638.0,0.24]
[1644041121425,0.09,41639.0,41638.0,0.31216746]
[1644041122973,0.09,41639.0,41638.0,0.53253]
[1644041125519,0.09,41639.0,41638.0,0.73253]
[1644041127624,0.09,41639.0,41638.0,1.01328141]
[1644041129390,0.09,41639.0,41638.0,0.73253]
[1644041130589,0.09,41639.0,41638.0,0.46216746]
[1644041131189,0.09,41639.0,41638.0,0.31216746]
[1644041131590,0.09,41639.0,41638.0,0.36216746]
[1644041132388,0.09,41639.0,41638.0,0.46216746]
[1644041132825,0.36834108,41639.0,41638.0,0.24]
[1644041133526,0.65,41638.0,41635.0,0.120025]
[1644041133724,0.27149164,41637.0,41635.0,0.120025]
[1644041133928,0.27345244,41636.0,41635.0,0.19657928]
[1644041134125,0.27345244,41636.0,41635.0,0.25661428]
[1644041135828,0.27345244,41636.0,41635.0,0.18006]
[1644041138175,0.25545317,41638.0,41634.0,0.05]
[1644041138375,0.25733026,41636.0,41634.0,0.04982702]
[1644041140524,0.25233026,41636.0,41634.0,0.10986602]
[1644041140925,0.00083778,41637.0,41634.0,0.10986602]
[1644041141126,0.2546154,41638.0,41634.0,0.10986602]
[1644041141326,0.00079431,41637.0,41635.0,0.060036]
[1644041142226,0.2546154,41638.0,41635.0,0.060036]
[1644041142425,0.1904231,41636.0,41635.0,0.060036]
[1644041143228,0.30360215,41638.0,41635.0,0.060036]
[1644041143425,0.3028154,41638.0,41635.0,0.060036]
[1644041144273,0.0482,41638.0,41635.0,0.060036]
[1644041144479,0.0482,41638.0,41636.0,0.060038]
[1644041145673,0.26001925,41637.0,41636.0,0.060038]
[1644041146876,0.26001925,41637.0,41635.0,0.060036]
[1644041147676,0.0482,41638.0,41635.0,0.060036]
[1644041148735,0.27439966,41637.0,41635.0,0.060036]
[1644041148933,0.27439966,41637.0,41634.0,0.34986602]
[1644041148934,0.27439966,41637.0,41634.0,0.40990502]
[1644041149535,0.0482,41638.0,41634.0,0.40990502]
[1644041149738,0.00075358,41638.0,41634.0,0.40990502]
[1644041150535,0.25356953,41638.0,41634.0,0.40990502]
[1644041150735,0.25281595,41638.0,41634.0,0.40990502]
[1644041150935,0.25356952,41638.0,41634.0,0.40990502]
[1644041151773,0.00075357,41638.0,41634.0,0.40990502]
[1644041151973,0.32649799,41639.0,41634.0,0.40990502]
[1644041152173,0.00075357,41638.0,41634.0,0.40990502]
[1644041153172,0.32649799,41639.0,41634.0,0.40990502]
[1644041153372,0.00075338,41638.0,41634.0,0.40990502]
[1644041154274,0.05,41635.0,41634.0,0.40990502]
[1644041154478,0.15,41633.0,41632.0,0.01846733]
[1644041154782,0.381046,41630.0,41624.0,0.00527828]
[1644041154979,0.05,41626.0,41624.0,0.00527828]
[1644041155177,0.46340395,41625.0,41624.0,0.00527828]
[1644041155424,0.95936852,41625.0,41624.0,0.00527828]
[1644041156926,1.27541425,41625.0,41624.0,0.00527828]
[1644041157127,1.49042809,41625.0,41624.0,0.00527828]
[1644041157327,0.06007022,41622.0,41610.0,0.00020586]
[1644041157532,0.06007022,41622.0,41605.0,0.243037]
[1644041157533,0.06647499,41620.0,41609.0,0.00020586]
[1644041157729,0.28852652,41619.0,41607.0,0.00020586]
[1644041157931,0.18966284,41609.0,41606.0,0.10020586]
[1644041158130,0.18966284,41609.0,41606.0,0.15020586]
[1644041158328,0.18966284,41609.0,41606.0,0.33284569]
[1644041158729,0.18966284,41609.0,41606.0,0.27277469]
[1644041158928,0.18966284,41609.0,41606.0,0.22277469]
[1644041159174,0.18966284,41609.0,41605.0,0.00020586]
[1644041159175,0.26866156,41608.0,41605.0,0.00020586]
[1644041159378,0.26866156,41608.0,41605.0,0.0008382]
[1644041159979,0.331046,41607.0,41605.0,0.0008382]
[1644041160182,0.59432287,41606.0,41605.0,0.0008382]
[1644041160378,0.59432287,41606.0,41603.0,0.00020586]
[1644041160574,0.59432287,41606.0,41604.0,0.00083822]
[1644041160575,0.26327687,41606.0,41604.0,0.00083822]
[1644041160775,0.0482,41608.0,41604.0,0.00083822]
[1644041160974,0.0482,41608.0,41604.0,0.23659917]
[1644041161178,0.06007655,41612.0,41604.0,0.23659917]
[1644041161378,0.27466078,41611.0,41607.0,0.07599973]
[1644041161578,0.27466078,41611.0,41607.0,0.05]
[1644041161977,0.27466078,41611.0,41607.0,0.05020586]
[1644041162177,0.56402605,41610.0,41607.0,0.05020586]
[1644041163023,0.72905987,41610.0,41607.0,0.05]
[1644041163222,0.21374583,41610.0,41607.0,0.00020586]
[1644041163523,0.37877965,41610.0,41606.0,0.00083819]
[1644041163721,0.21374583,41610.0,41606.0,0.26021193]
[1644041163921,0.27466078,41611.0,41605.0,0.00020586]
[1644041164122,0.27466078,41611.0,41606.0,0.0008382]
[1644041164321,0.27466078,41611.0,41607.0,2.30965705]
[1644041164523,0.27466078,41611.0,41608.0,0.00020586]
[1644041165122,0.20360379,41613.0,41608.0,0.24020586]
[1644041165322,0.20120179,41613.0,41608.0,0.24020586]
[1644041166323,0.27775772,41614.0,41608.0,0.24020586]
[1644041166588,0.27775772,41614.0,41608.0,0.29083817]
[1644041166979,0.27775772,41614.0,41608.0,0.24083817]
[1644041167379,0.2239039,41612.0,41608.0,0.24083817]
[1644041167580,0.2239039,41612.0,41608.0,0.24]
[1644041167780,0.2239039,41612.0,41609.0,0.00083816]
[1644041167979,0.2239039,41612.0,41609.0,0.00104402]
[1644041168581,0.26697151,41611.0,41609.0,0.00104402]
[1644041168780,0.331046,41610.0,41609.0,0.00020586]
[1644041168979,0.26697151,41611.0,41608.0,0.24083817]
[1644041169380,0.22230084,41610.0,41608.0,0.24083817]
[1644041169980,0.22230084,41610.0,41608.0,0.24]
[1644041170425,0.22230084,41610.0,41608.0,0.24020586]
[1644041171327,0.22230084,41610.0,41608.0,0.24]
[1644041171725,0.22230084,41610.0,41608.0,0.24020586]
[1644041172025,0.28797608,41614.0,41608.0,0.24020586]
[1644041172626,0.28797608,41614.0,41609.0,0.00083816]
[1644041172826,0.21557008,41613.0,41609.0,0.00104402]
[1644041173027,0.48518263,41613.0,41609.0,0.00104402]
[1644041173232,0.331046,41612.0,41609.0,0.00104402]
[1644041173628,0.331046,41612.0,41609.0,0.00020586]
[1644041173828,0.16503382,41613.0,41608.0,0.30111903]
[1644041174081,0.4530099,41614.0,41608.0,0.30111903]
[1644041174277,0.28797608,41614.0,41608.0,0.30111903]
[1644041174878,0.50930821,41614.0,41608.0,0.30028086]
[1644041175078,0.50930821,41614.0,41609.0,0.00083816]
[1644041175276,0.50930821,41614.0,41609.0,0.00104402]
[1644041176077,0.50930821,41614.0,41609.0,0.00020586]
[1644041176277,0.50930821,41614.0,41609.0,0.00083815]
[1644041176477,0.50930821,41614.0,41609.0,0.00104401]
[1644041177279,0.50930821,41614.0,41609.0,0.00020586]
[1644041177480,0.50930821,41614.0,41609.0,0.00083815]
[1644041177827,0.50930821,41614.0,41609.0,0.00104401]
[1644041178329,0.331046,41613.0,41609.0,0.00104401]
[1644041178931,0.331046,41611.0,41609.0,0.00104401]
[1644041179128,1.18142317,41610.0,41608.0,0.23791198]
[1644041179329,0.90621823,41609.0,41608.0,0.23791198]
[1644041179529,1.11946845,41609.0,41608.0,0.23791198]
[1644041179730,0.95441823,41609.0,41608.0,0.23791198]
[1644041179929,1.11946845,41609.0,41608.0,0.23791198]
[1644041180135,0.95441823,41609.0,41608.0,0.23791198]
[1644041180331,1.11946845,41609.0,41608.0,0.23791198]
[1644041180531,0.95441823,41609.0,41608.0,0.23791198]
[1644041180732,1.11946845,41609.0,41608.0,0.23791198]
[1644041181336,1.26946845,41609.0,41608.0,0.23791198]
[1644041181578,1.11946845,41609.0,41608.0,0.23791198]
[1644041182173,1.11576659,41609.0,41608.0,0.23791198]
[1644041182773,1.26576659,41609.0,41608.0,0.23791198]
[1644041184173,1.11576659,41609.0,41608.0,0.23791198]
[1644041184375,1.21576659,41609.0,41608.0,0.23791198]
[1644041184575,1.26576659,41609.0,41608.0,0.23791198]
[1644041187029,1.11576659,41609.0,41608.0,0.23791198]
[1644041188633,1.26576659,41609.0,41608.0,0.23791198]
[1644041191982,1.26576659,41609.0,41608.0,0.23811954]
[1644041192282,1.26576659,41609.0,41608.0,0.23791198]
[1644041195733,1.31576659,41609.0,41608.0,0.23791198]
[1644041195933,0.99912853,41609.0,41608.0,0.23791198]
[1644041196235,0.78407831,41609.0,41608.0,0.23791198]
[1644041197487,1.08682221,41609.0,41608.0,0.23791198]
[1644041197688,1.25187243,41609.0,41608.0,0.23791198]
[1644041200729,0.99704012,41609.0,41608.0,0.23791198]
[1644041200930,0.54429622,41609.0,41608.0,0.23791198]
[1644041201132,0.49609622,41609.0,41608.0,0.23791198]
[1644041201329,0.331046,41609.0,41608.0,0.23791198]
[1644041201731,0.331046,41609.0,41608.0,0.42861142]
[1644041201936,0.3068609,41613.0,41608.0,0.47861142]
[1644041201937,0.16505022,41613.0,41608.0,0.47861142]
[1644041202131,0.331046,41612.0,41608.0,0.47861142]
[1644041202335,0.38508441,41617.0,41611.0,0.05]
[1644041202532,0.38508441,41617.0,41616.0,0.05]
[1644041202731,0.331046,41617.0,41616.0,0.32127663]
[1644041202932,0.28034119,41621.0,41618.0,0.06006]
[1644041203132,0.00334959,41621.0,41618.0,0.06006]
[1644041203733,0.07341893,41624.0,41618.0,0.06006]
[1644041203933,0.00081534,41622.0,41618.0,0.06006]
[1644041204589,0.00081534,41622.0,41617.0,0.110064]
[1644041204779,0.00070112,41622.0,41617.0,0.110064]
[1644041204979,0.06006536,41623.0,41617.0,0.110064]
[1644041205178,0.00081534,41622.0,41617.0,0.110064]
[1644041205978,0.06006536,41623.0,41617.0,0.110064]
[1644041206878,0.06006536,41623.0,41621.0,0.05]
[1644041207085,0.06006328,41625.0,41621.0,0.05]
[1644041207281,0.16505022,41628.0,41622.0,0.05]
[1644041207482,0.00078804,41624.0,41622.0,0.05]
[1644041207929,0.00078804,41624.0,41618.0,0.05]
[1644041208129,0.06006676,41623.0,41618.0,0.05]
[1644041208734,0.06085482,41623.0,41618.0,0.05]
[1644041209735,0.06006676,41623.0,41618.0,0.05]
[1644041209932,0.06085482,41623.0,41618.0,0.05]
[1644041210934,0.06006676,41623.0,41618.0,0.05]
[1644041211334,0.06085666,41623.0,41618.0,0.05]
[1644041211984,0.06006676,41623.0,41618.0,0.05]
[1644041212389,0.06085666,41623.0,41618.0,0.05]
[1644041213186,0.06006676,41623.0,41618.0,0.05]
[1644041213486,0.06085666,41623.0,41618.0,0.05]
[1644041214488,0.06006676,41623.0,41617.0,0.24]
[1644041214694,0.06006676,41623.0,41610.0,0.2820099]
[1644041214695,0.87014973,41622.0,41610.0,0.2820099]
[1644041214896,0.06008493,41618.0,41610.0,0.05020756]
[1644041215093,0.02064744,41616.0,41610.0,0.00020756]
[1644041215336,0.02064744,41616.0,41609.0,0.00079004]
[1644041215537,0.26104449,41614.0,41610.0,0.26159823]
[1644041215739,0.02064744,41616.0,41612.0,0.05]
[1644041216340,0.02064744,41616.0,41615.0,0.05]
[1644041216739,0.02064744,41616.0,41615.0,0.26499449]
[1644041219582,0.00715078,41621.0,41615.0,0.50499449]
[1644041220284,0.00715078,41621.0,41616.0,0.060066]
[1644041220582,0.00640181,41621.0,41616.0,0.060066]
[1644041220778,0.00715359,41621.0,41616.0,0.120131]
[1644041221383,0.00715359,41621.0,41619.0,0.05]
[1644041221585,0.00075178,41621.0,41619.0,0.05]
[1644041221781,0.4796,41631.0,41619.0,0.05]
[1644041221982,0.00075169,41622.0,41619.0,0.05]
[1644041222582,0.00075169,41622.0,41619.0,0.110062]
[1644041222836,0.23402771,41624.0,41619.0,0.110062]
[1644041223030,0.23402771,41624.0,41621.0,0.060057]
[1644041223230,0.00075168,41623.0,41621.0,0.110057]
[1644041223432,0.00075168,41623.0,41621.0,0.05]
[1644041224033,0.23402771,41624.0,41621.0,0.05]
[1644041224432,0.23477919,41624.0,41621.0,0.05]
[1644041225337,0.06006282,41626.0,41621.0,0.05]
[1644041225532,0.00075138,41625.0,41621.0,0.05]
[1644041226431,0.19632099,41624.0,41621.0,0.05]
[1644041226883,0.00075138,41625.0,41621.0,0.05]
[1644041227681,0.08060556,41628.0,41621.0,0.05]
[1644041227885,0.2633631,41626.0,41621.0,0.05]
[1644041228080,0.00081469,41623.0,41619.0,0.060062]
[1644041228383,0.00081469,41623.0,41620.0,0.05]
[1644041229986,0.00081469,41623.0,41617.0,0.05]
[1644041230832,0.00017459,41623.0,41617.0,0.05]
[1644041231533,0.00075144,41622.0,41617.0,0.05]
[1644041232435,0.20054216,41620.0,41617.0,0.05]
[1644041233535,0.0608221,41622.0,41617.0,0.05]
[1644041233739,0.06007066,41622.0,41617.0,0.05]
[1644041233935,0.00075144,41621.0,41617.0,0.05]
[1644041234991,0.06007066,41622.0,41617.0,0.05]
[1644041235187,0.00075144,41621.0,41617.0,0.05]
[1644041236089,0.06007066,41622.0,41615.0,0.24]
[1644041236289,0.00075144,41621.0,41620.0,0.05]
[1644041237287,0.06007066,41622.0,41620.0,0.05]
[1644041239132,0.06007066,41622.0,41617.0,0.05]
[1644041239333,0.044751,41620.0,41617.0,0.005249]
[1644041241435,0.00075144,41621.0,41615.0,0.300068]
[1644041241436,0.00075144,41621.0,41619.0,0.005489]
[1644041241683,0.044441,41620.0,41615.0,0.300068]
[1644041241883,0.00075144,41621.0,41619.0,0.005559]
[1644041242083,0.05917066,41622.0,41619.0,0.005559]
[1644041242485,0.044441,41620.0,41619.0,0.005559]
[1644041242784,0.044441,41620.0,41616.0,0.005559]
[1644041242983,0.044441,41620.0,41619.0,0.005559]
[1644041243383,0.044441,41620.0,41616.0,0.005559]
[1644041243583,0.05917066,41622.0,41616.0,0.005559]
[1644041243584,0.0599221,41622.0,41616.0,0.005559]
[1644041243986,0.044441,41617.0,41616.0,0.005559]
[1644041244384,0.06006939,41620.0,41616.0,0.005559]
[1644041244787,0.044441,41617.0,41616.0,0.005559]
[1644041246436,0.06006939,41620.0,41616.0,0.005559]
[1644041246637,0.044441,41617.0,41616.0,0.005559]
[1644041246841,0.03630912,41617.0,41616.0,0.01369088]
[1644041247037,0.06006939,41620.0,41616.0,0.01369088]
[1644041247239,0.03630912,41617.0,41616.0,0.01369088]
[1644041247639,0.06006939,41620.0,41616.0,0.01369088]
[1644041247839,0.06007197,41618.0,41616.0,0.01369088]
[1644041248344,0.03630912,41617.0,41616.0,0.01369088]
[1644041248539,0.06007197,41618.0,41616.0,0.01369088]
[1644041249382,0.03630912,41617.0,41616.0,0.01369088]
[1644041249788,0.03630912,41617.0,41615.0,0.25369088]
[1644041250382,0.03630912,41617.0,41615.0,0.24]
[1644041250585,0.03630912,41617.0,41616.0,0.01369088]
[1644041251684,0.03630912,41617.0,41616.0,0.01048421]
[1644041251985,0.03951579,41617.0,41616.0,0.01048421]
[1644041253538,0.03951579,41617.0,41615.0,0.24]
[1644041255938,0.03951579,41617.0,41615.0,0.2]
[1644041256996,0.28882789,41616.0,41615.0,0.2]
[1644041257195,0.28882789,41616.0,41611.0,0.1126]
[1644041257196,0.75,41615.0,41611.0,0.1126]
[1644041257394,0.331046,41614.0,41610.0,0.00020699]
[1644041257593,0.77414036,41611.0,41609.0,0.00095864]
[1644041257895,0.84072968,41611.0,41609.0,0.00075163]
[1644041258898,0.84072968,41611.0,41608.0,0.00020699]
[1644041259096,0.03951579,41609.0,41608.0,0.00075163]
[1644041259296,0.65186502,41609.0,41608.0,0.00095862]
[1644041259497,0.65186502,41609.0,41608.0,0.00075163]
[1644041260096,0.65186502,41609.0,41605.0,0.00020699]
[1644041260337,0.65186502,41609.0,41606.0,0.00047482]
[1644041260338,0.61234923,41609.0,41606.0,0.00047482]
[1644041260543,0.03951579,41607.0,41606.0,0.00047482]
[1644041260740,0.37056179,41607.0,41606.0,0.00047482]
[1644041260940,0.66299173,41607.0,41606.0,0.00047482]
[1644041261340,0.66299173,41607.0,41605.0,0.00020699]
[1644041261544,0.66299173,41607.0,41604.0,0.02032245]
[1644041261841,0.66299173,41607.0,41604.0,0.00095866]
[1644041262640,0.66299173,41607.0,41604.0,0.00020699]
[1644041262841,0.66299173,41607.0,41603.0,0.01048421]
[1644041262842,0.66299173,41607.0,41603.0,0.01144288]
[1644041263741,0.66299173,41607.0,41603.0,0.0106912]
[1644041263941,0.62347594,41607.0,41603.0,0.01144289]
[1644041264190,0.29242994,41607.0,41603.0,0.01144289]
[1644041264385,0.04591965,41604.0,41603.0,0.01144289]
[1644041264688,0.00640386,41604.0,41603.0,0.25144289]
[1644041264885,0.22650311,41604.0,41603.0,0.2506912]
[1644041265486,0.00640386,41604.0,41603.0,0.2506912]
[1644041268242,0.03951579,41606.0,41603.0,0.2306912]
[1644041268440,0.05,41606.0,41603.0,0.23089823]
[1644041271443,0.05,41606.0,41604.0,0.25800071]
[1644041271685,0.05,41606.0,41604.0,0.25820774]
[1644041279191,0.05,41606.0,41604.0,0.06029103]
[1644041285137,0.05,41606.0,41604.0,0.00020703]
[1644041285338,0.05,41606.0,41603.0,0.29098223]
[1644041285538,0.05,41606.0,41603.0,0.29173376]
[1644041285837,0.05,41606.0,41603.0,0.35181976]
[1644041286687,0.05,41606.0,41603.0,0.35106823]
[1644041288788,0.05,41606.0,41603.0,0.23089823]
[1644041289190,0.05,41606.0,41603.0,0.2306912]
[1644041289388,0.05,41606.0,41603.0,0.23089823]
[1644041289789,0.05,41606.0,41603.0,0.7578923]
[1644041289993,0.05,41606.0,41603.0,0.8179783]
[1644041290345,0.04991214,41604.0,41603.0,0.35107023]
[1644041291645,0.04991214,41604.0,41603.0,0.3508632]
[1644041291846,0.04991214,41604.0,41603.0,0.2907772]
[1644041292347,0.04991214,41604.0,41603.0,0.29098423]
[1644041301789,0.14706435,41609.0,41603.0,0.34098423]
[1644041302091,0.14706435,41609.0,41603.0,0.40106823]
[1644041302288,0.32561348,41612.0,41604.0,0.30993847]
[1644041302488,0.32561348,41612.0,41604.0,0.31041235]
[1644041302889,0.06007899,41611.0,41604.0,0.06055688]
[1644041303289,0.24975753,41609.0,41604.0,0.26304239]
[1644041303490,0.32561348,41612.0,41604.0,0.26256851]
[1644041303689,0.32561348,41612.0,41606.0,0.060081]
[1644041304089,0.20948863,41609.0,41606.0,0.060081]
[1644041304489,0.43488309,41609.0,41606.0,0.060081]
[1644041304891,0.20948863,41609.0,41606.0,0.120161]
[1644041305091,0.20948863,41609.0,41606.0,0.060081]
[1644041305739,0.27502831,41608.0,41603.0,0.29098323]
[1644041305940,0.27502831,41608.0,41605.0,0.00080535]
[1644041306341,0.0482,41607.0,41605.0,0.00080535]
[1644041306544,0.89840484,41606.0,41605.0,0.00080535]
[1644041306742,0.75,41605.0,41602.0,0.02033441]
[1644041306944,0.4393529,41604.0,41602.0,0.02033441]
[1644041307140,0.67900197,41603.0,41602.0,0.02033441]
[1644041307340,0.75491997,41603.0,41602.0,0.02033441]
[1644041307946,0.06969159,41598.0,41593.0,0.35937252]
[1644041308144,0.060107,41602.0,41591.0,0.1143]
[1644041308145,0.18032285,41596.0,41591.0,0.1143]
[1644041308342,0.18032285,41596.0,41590.0,0.35937252]
[1644041308742,0.18032285,41596.0,41591.0,0.24]
[1644041308743,0.0482,41595.0,41591.0,0.24]
[1644041309095,0.108311,41595.0,41591.0,0.24]
[1644041309292,0.21158845,41592.0,41591.0,0.24]
[1644041309694,0.21158845,41592.0,41591.0,0.24083705]
[1644041310495,0.2742201,41594.0,41591.0,0.29083705]
[1644041310691,0.2742201,41594.0,41591.0,0.29]
[1644041310893,0.2742201,41594.0,41591.0,0.24]
[1644041311795,0.06010482,41596.0,41592.0,0.05]
[1644041311995,0.06010111,41598.0,41592.0,0.05]
[1644041312195,0.05459951,41598.0,41592.0,0.05]
[1644041312594,0.05459951,41598.0,41594.0,0.05]
[1644041312840,0.26729166,41596.0,41594.0,0.05]
[1644041313242,0.26729166,41596.0,41594.0,0.05083701]
[1644041313941,0.3273949,41596.0,41594.0,0.05083701]
[1644041314141,0.3273949,41596.0,41594.0,0.05]
[1644041314342,0.36063537,41596.0,41593.0,0.00083703]
[1644041314740,0.36063537,41596.0,41594.0,0.05]
[1644041315142,0.36063537,41596.0,41593.0,0.00083703]
[1644041315441,0.36063537,41596.0,41592.0,0.060102]
[1644041315647,0.30053213,41596.0,41592.0,0.060102]
[1644041316692,0.30053213,41596.0,41592.0,0.110102]
[1644041317093,0.27211237,41595.0,41592.0,0.060102]
[1644041317294,0.3606365,41596.0,41591.0,0.24]
[1644041317492,0.00640541,41595.0,41591.0,0.24]
[1644041318092,0.00640541,41595.0,41591.0,0.24083655]
[1644041318493,0.00640541,41595.0,41591.0,0.29083655]
[1644041319094,0.00640541,41595.0,41591.0,0.29]
[1644041319295,0.00640541,41595.0,41591.0,0.29083655]
[1644041320544,0.00640541,41595.0,41591.0,0.24083655]
[1644041321345,0.00640541,41595.0,41591.0,0.24]
[1644041321544,0.00640541,41595.0,41591.0,0.24083655]
[1644041321946,0.00640541,41595.0,41591.0,0.30114565]
[1644041322347,0.00640541,41595.0,41591.0,0.24104265]
[1644041322548,0.00640541,41595.0,41591.0,0.2402061]
[1644041322746,0.00640541,41595.0,41591.0,0.24104265]
[1644041323750,0.00640541,41595.0,41591.0,0.2402061]
[1644041323948,0.00640541,41595.0,41591.0,0.24104265]
[1644041324193,0.00640541,41595.0,41591.0,0.24083655]
[1644041324994,0.00640541,41595.0,41591.0,0.24]
[1644041325193,0.00640541,41595.0,41592.0,0.06845974]
[1644041325494,0.27445436,41595.0,41592.0,0.11866584]
[1644041325693,0.00640541,41595.0,41592.0,0.11866584]
[1644041325895,0.3,41601.0,41592.0,0.17876484]
[1644041326100,0.4833,41604.0,41598.0,0.05]
[1644041326296,0.331046,41603.0,41594.0,0.05]
[1644041326494,0.46512095,41607.0,41601.0,0.2536382]
[1644041326695,0.52998077,41606.0,41601.0,0.2536382]
[1644041327096,0.69510172,41606.0,41601.0,0.2536382]
[1644041327295,0.52998077,41606.0,41601.0,0.2536382]
[1644041327496,0.69510172,41606.0,41601.0,0.2536382]
[1644041327697,0.59007677,41606.0,41601.0,0.00083591]
[1644041327940,0.12019507,41604.0,41601.0,0.00083591]
[1644041328140,0.331046,41603.0,41601.0,0.00083591]
[1644041328340,0.27251208,41602.0,41601.0,0.00083591]
[1644041328540,0.60355808,41602.0,41597.0,0.25782943]
[1644041328746,0.3325375,41602.0,41597.0,0.25782943]
[1644041328942,0.06009903,41601.0,41599.0,0.00051927]
[1644041329744,0.06009903,41601.0,41598.0,0.0002061]
[1644041330044,0.06009903,41601.0,41598.0,0.00051928]
[1644041330246,0.06009903,41601.0,41598.0,0.00072538]
[1644041330247,0.33745086,41600.0,41598.0,0.00072538]
[1644041330443,0.6147378,41599.0,41598.0,0.00072538]
[1644041330646,0.6147378,41599.0,41598.0,0.00051928]
[1644041331044,0.06009978,41598.0,41593.0,0.0002061]
[1644041331251,0.06009978,41598.0,41596.0,0.0005193]
[1644041331446,0.26883285,41597.0,41596.0,0.0005193]
[1644041331691,0.27118705,41597.0,41596.0,0.0005193]
[1644041332089,0.06009978,41598.0,41596.0,0.0005193]
[1644041332290,0.27733781,41597.0,41593.0,0.0002061]
[1644041332491,0.27215633,41597.0,41594.0,0.00083576]
[1644041333493,0.27215633,41597.0,41593.0,0.0002061]
[1644041333796,0.27215633,41597.0,41593.0,0.00083577]
[1644041333993,0.0866243,41595.0,41593.0,0.00083577]
[1644041334194,0.0482,41594.0,41593.0,0.00083577]
[1644041334392,0.379246,41594.0,41593.0,0.00083577]
[1644041334592,0.379246,41594.0,41592.0,0.0002061]
[1644041334792,0.24137499,41593.0,41592.0,0.0002061]
[1644041334992,0.62062099,41593.0,41592.0,0.0002061]
[1644041335192,0.34968874,41593.0,41591.0,0.24083579]
[1644041335640,0.10831375,41593.0,41591.0,0.24083579]
[1644041335843,0.10831375,41593.0,41591.0,0.24]
[1644041336139,0.27450867,41592.0,41591.0,0.24]
[1644041336343,0.32270867,41592.0,41591.0,0.2402061]
[1644041336740,0.59631617,41592.0,41591.0,0.2402061]
[1644041337141,0.59631617,41592.0,41591.0,0.24]
[1644041337341,0.92736217,41592.0,41591.0,0.24]
[1644041338345,0.95489329,41592.0,41591.0,0.24]